[Event "Torneo Nuevo Centro. Jornada 10"]
[Site "Chess.com"]
[Date "2020.08.21"]
[Round "1"]
[White "Birnoveanu, Petru"]
[Black "Valmaña Cantó, Jaime"]
[Result "0-1"]
[WhiteElo "1714"]
[BlackElo "2409"]
[TimeControl "180+2"]
[EndTime "10:39:57 PDT"]
[Termination "Victoria de barberbirborbur por tiempo"]

1. e4 {[%clk 0:03:00.5]} 1... e6 {[%clk 0:03:00.4]} 2. Nf3 {[%clk 0:02:58.1]}
2... d5 {[%clk 0:03:01.5]} 3. Nc3 {[%clk 0:02:58.4]} 3... c6 {[%clk 0:02:56.1]}
4. d4 {[%clk 0:02:49.8]} 4... Nd7 {[%clk 0:02:53.8]} 5. exd5 {[%clk 0:02:50]}
5... cxd5 {[%clk 0:02:53.5]} 6. h4 {[%clk 0:02:40.2]} 6... Ngf6 {[%clk
0:02:50.4]} 7. h5 {[%clk 0:02:40]} 7... h6 {[%clk 0:02:49.4]} 8. Be3 {[%clk
0:02:30.9]} 8... Bb4 {[%clk 0:02:49.9]} 9. a3 {[%clk 0:02:29.7]} 9... Bxc3+
{[%clk 0:02:50.3]} 10. bxc3 {[%clk 0:02:30]} 10... Nb6 {[%clk 0:02:51.8]} 11.
Bd3 {[%clk 0:02:26.1]} 11... Qc7 {[%clk 0:02:50.2]} 12. Bd2 {[%clk 0:02:21.6]}
12... Nc4 {[%clk 0:02:47.2]} 13. Bxc4 {[%clk 0:02:15.9]} 13... Qxc4 {[%clk
0:02:47.1]} 14. Qe2 {[%clk 0:02:16.2]} 14... Qxe2+ {[%clk 0:02:47.9]} 15. Kxe2
{[%clk 0:02:16.6]} 15... b6 {[%clk 0:02:49.6]} 16. Ne5 {[%clk 0:02:13.9]} 16...
Ba6+ {[%clk 0:02:43]} 17. Ke3 {[%clk 0:02:08.9]} 17... Rc8 {[%clk 0:02:40.1]}
18. f3 {[%clk 0:02:08.7]} 18... Nd7 {[%clk 0:02:19.8]} 19. Nxd7 {[%clk 0:01:52]}
19... Kxd7 {[%clk 0:02:21.7]} 20. g4 {[%clk 0:01:51.4]} 20... f6 {[%clk
0:02:08.6]} 21. f4 {[%clk 0:01:50.8]} 21... Rhf8 {[%clk 0:02:06.8]} 22. Rhg1
{[%clk 0:01:47.3]} 22... Rce8 {[%clk 0:02:04.2]} 23. Rae1 {[%clk 0:01:32.9]}
23... e5 {[%clk 0:02:04.9]} 24. dxe5 {[%clk 0:01:27.8]} 24... fxe5 {[%clk
0:02:02.9]} 25. fxe5 {[%clk 0:01:28.5]} 25... Rxe5+ {[%clk 0:01:57.6]} 26. Kd4
{[%clk 0:01:29.1]} 26... Rxe1 {[%clk 0:01:53.4]} 27. Rxe1 {[%clk 0:01:25.7]}
27... Rf2 {[%clk 0:01:52.6]} 28. Be3 {[%clk 0:01:15.1]} 28... Rg2 {[%clk
0:01:50.3]} 29. Kxd5 {[%clk 0:01:15]} 29... Rxg4 {[%clk 0:01:33.5]} 30. Rd1
{[%clk 0:01:01.6]} 30... Bb7+ {[%clk 0:01:23.5]} 31. Ke5+ {[%clk 0:00:52.8]}
31... Ke7 {[%clk 0:01:25]} 32. Bf4 {[%clk 0:00:51.4]} 32... Rh4 {[%clk 0:01:21]}
33. Rg1 {[%clk 0:00:50.3]} 33... Rxh5+ {[%clk 0:01:19.5]} 34. Kd4 {[%clk
0:00:48.1]} 34... g5 {[%clk 0:01:19.5]} 35. Bb8 {[%clk 0:00:45.3]} 35... Rh4+
{[%clk 0:01:16.9]} 36. Ke3 {[%clk 0:00:40.5]} 36... Re4+ {[%clk 0:01:16.7]} 37.
Kd3 {[%clk 0:00:41.2]} 37... a6 {[%clk 0:01:04.1]} 38. Ba7 {[%clk 0:00:38.8]}
38... b5 {[%clk 0:01:04.5]} 39. Bd4 {[%clk 0:00:33]} 39... g4 {[%clk 0:01:02.1]}
40. c4 {[%clk 0:00:30.6]} 40... bxc4+ {[%clk 0:00:44.2]} 41. Kxc4 {[%clk
0:00:30.9]} 41... h5 {[%clk 0:00:45.7]} 42. Kd3 {[%clk 0:00:24.8]} 42... h4
{[%clk 0:00:42.8]} 43. Bc5+ {[%clk 0:00:22.2]} 43... Ke6 {[%clk 0:00:38.4]} 44.
Bf2 {[%clk 0:00:22]} 44... h3 {[%clk 0:00:21.6]} 45. Bg3 {[%clk 0:00:21.6]}
45... Ra4 {[%clk 0:00:21.6]} 46. Bh2 {[%clk 0:00:14.9]} 46... Rxa3+ {[%clk
0:00:21.2]} 47. Kd2 {[%clk 0:00:13.1]} 47... Bf3 {[%clk 0:00:22.5]} 48. Re1+
{[%clk 0:00:05.1]} 48... Kd7 {[%clk 0:00:22.8]} 49. Re3 {[%clk 0:00:05.8]} 49...
Rxe3 {[%clk 0:00:22.7]} 50. Kxe3 {[%clk 0:00:05.8]} 50... Kc6 {[%clk 0:00:22.5]}
51. Kd4 {[%clk 0:00:06.3]} 51... Kb5 {[%clk 0:00:24.1]} 52. Kc3 {[%clk
0:00:05.9]} 52... Kc5 {[%clk 0:00:23.2]} 53. Kb3 {[%clk 0:00:02.4]} 53... Kd4
{[%clk 0:00:23.1]} 0

[Event "Torneo Nuevo Centro. Jornada 10"]
[Site "Chess.com"]
[Date "2020.08.21"]
[Round "1"]
[White "Chofre Murcia, Adrián"]
[Black "Kovacevic, Slobodan"]
[Result "0-1"]
[WhiteElo "1674"]
[BlackElo "2323"]
[TimeControl "180+2"]
[EndTime "10:40:00 PDT"]
[Termination "Victoria de nikko110 por abandono"]

1. e4 {[%clk 0:03:01.4]} 1... c5 {[%clk 0:02:58.4]} 2. Nc3 {[%clk 0:03:02.5]}
2... e6 {[%clk 0:02:57.9]} 3. Nf3 {[%clk 0:03:01.7]} 3... a6 {[%clk 0:02:57.2]}
4. Be2 {[%clk 0:02:58]} 4... b5 {[%clk 0:02:55.9]} 5. a3 {[%clk 0:02:55.2]} 5...
Bb7 {[%clk 0:02:55.7]} 6. O-O {[%clk 0:02:54.9]} 6... b4 {[%clk 0:02:54.4]} 7.
axb4 {[%clk 0:02:55]} 7... cxb4 {[%clk 0:02:53.5]} 8. Na2 {[%clk 0:02:53.8]}
8... Bxe4 {[%clk 0:02:52.3]} 9. d3 {[%clk 0:02:52.3]} 9... Bb7 {[%clk
0:02:51.7]} 10. Bd2 {[%clk 0:02:52.6]} 10... Nc6 {[%clk 0:02:50.6]} 11. Re1
{[%clk 0:02:48.1]} 11... Nf6 {[%clk 0:02:47.2]} 12. c3 {[%clk 0:02:47.1]} 12...
bxc3 {[%clk 0:02:41.2]} 13. bxc3 {[%clk 0:02:40.7]} 13... Be7 {[%clk 0:02:40.3]}
14. Qb3 {[%clk 0:02:32.9]} 14... Qc7 {[%clk 0:02:39.3]} 15. g3 {[%clk
0:02:24.7]} 15... O-O {[%clk 0:02:37.9]} 16. Bf4 {[%clk 0:02:22.6]} 16... d6
{[%clk 0:02:36.6]} 17. Nb4 {[%clk 0:02:19.1]} 17... Nxb4 {[%clk 0:02:20.7]} 18.
Qxb4 {[%clk 0:02:18.1]} 18... Nd5 {[%clk 0:02:04.4]} 19. Qb3 {[%clk 0:02:04.7]}
19... Nxc3 {[%clk 0:01:52.7]} 20. Bf1 {[%clk 0:01:56.9]} 20... Nd5 {[%clk
0:01:47.4]} 21. Rec1 {[%clk 0:01:38.6]} 21... Qd7 {[%clk 0:01:43.8]} 22. Bd2
{[%clk 0:01:25.5]} 22... Bf6 {[%clk 0:01:42.2]} 23. Rab1 {[%clk 0:01:25]} 23...
Bc6 {[%clk 0:01:37.9]} 24. Bg2 {[%clk 0:01:14.7]} 24... h6 {[%clk 0:01:33.8]}
25. Rc2 {[%clk 0:01:02.5]} 25... Ba4 {[%clk 0:01:31.2]} 26. Qa2 {[%clk
0:00:53.1]} 26... Bxc2 {[%clk 0:01:29.4]} 27. Qxc2 {[%clk 0:00:53.2]} 27... a5
{[%clk 0:01:27.8]} 28. d4 {[%clk 0:00:32.7]} 28... a4 {[%clk 0:01:25.8]} 29. Qc4
{[%clk 0:00:22.3]} 29... Rfc8 {[%clk 0:01:19.6]} 30. Qa2 {[%clk 0:00:20.8]}
30... Nc3 {[%clk 0:01:14.3]} 31. Bxc3 {[%clk 0:00:21]} 31... Rxc3 {[%clk
0:01:13.4]} 32. Nd2 {[%clk 0:00:21.5]} 32... d5 {[%clk 0:01:11.6]} 33. Qb2
{[%clk 0:00:20.4]} 33... Rac8 {[%clk 0:01:05.1]} 34. Bf1 {[%clk 0:00:16.1]}
34... Rc2 {[%clk 0:01:02.8]} 35. Qb4 {[%clk 0:00:14.9]} 35... Be7 {[%clk
0:01:01.7]} 36. Qa5 {[%clk 0:00:12.6]} 36... a3 {[%clk 0:00:54.4]} 37. Bd3
{[%clk 0:00:11.6]} 37... Rb2 {[%clk 0:00:52.3]} 38. Rxb2 {[%clk 0:00:09.5]}
38... axb2 {[%clk 0:00:51.4]} 39. Qa2 {[%clk 0:00:07.8]} 39... Rb8 {[%clk
0:00:49]} 40. Qa6 {[%clk 0:00:03.5]} 40... Bf6 {[%clk 0:00:46]} 41. Qa5 {[%clk
0:00:02.7]} 41... g6 {[%clk 0:00:44.3]} 42. Qa3 {[%clk 0:00:02.7]} 42... Kg7
{[%clk 0:00:42.6]} 43. Qa2 {[%clk 0:00:03.8]} 43... Bxd4 {[%clk 0:00:41.6]} 44.
Qb1 {[%clk 0:00:04.3]} 44... Qa7 {[%clk 0:00:40.2]} 45. Kg2 {[%clk 0:00:05.1]}
45... Bxf2 {[%clk 0:00:38.9]} 46. Qc2 {[%clk 0:00:04.6]} 46... Bd4 {[%clk
0:00:37.2]} 47. Nf3 {[%clk 0:00:05.5]} 47... Bf6 {[%clk 0:00:36.1]} 48. Nd2
{[%clk 0:00:06]} 48... Qe3 {[%clk 0:00:34.3]} 49. Qd1 {[%clk 0:00:06.6]} 49...
Qxd3 {[%clk 0:00:34]} 50. Qe1 {[%clk 0:00:07]} 50... Bc3 {[%clk 0:00:31.6]} 51.
Qf2 {[%clk 0:00:02.6]} 51... Qxd2 {[%clk 0:00:30.7]} 52. Qxd2 {[%clk 0:00:03.8]}
52... Bxd2 {[%clk 0:00:30.2]} 53. Kf3 {[%clk 0:00:05.7]} 53... b1=Q {[%clk
0:00:29]} 54. Ke2 {[%clk 0:00:07.6]} 54... Qe1+ {[%clk 0:00:27.2]} 55. Kd3
{[%clk 0:00:08.8]} 55... Qe3+ {[%clk 0:00:27.2]} 56. Kc2 {[%clk 0:00:09.9]}
56... Rc8+ {[%clk 0:00:26.7]} 57. Kb2 {[%clk 0:00:10.3]} 57... Qc3+ {[%clk
0:00:24.5]} 0

[Event "Torneo Nuevo Centro. Jornada 10"]
[Site "Chess.com"]
[Date "2020.08.21"]
[Round "2"]
[White "Yatseta Fernandez, Marc Kazymyr"]
[Black "Vicent Lázaro, Elena"]
[Result "1-0"]
[WhiteElo "1443"]
[BlackElo "656"]
[TimeControl "180+2"]
[EndTime "10:42:36 PDT"]
[Termination "Victoria de K_73 por abandono"]

1. d4 {[%clk 0:02:59.7]} 1... e6 {[%clk 0:02:59.5]} 2. c4 {[%clk 0:03:01.6]}
2... c5 {[%clk 0:02:54.7]} 3. Nf3 {[%clk 0:03:01.9]} 3... Na6 {[%clk 0:02:54.7]}
4. e4 {[%clk 0:02:52.3]} 4... Bd6 {[%clk 0:02:51.3]} 5. d5 {[%clk 0:02:50.8]}
5... exd5 {[%clk 0:02:46.1]} 6. exd5 {[%clk 0:02:49.1]} 6... Bb8 {[%clk
0:02:44.2]} 7. d6 {[%clk 0:02:40.8]} 7... Qc7 {[%clk 0:02:45.4]} 8. dxc7 {[%clk
0:02:38.4]} 8... Nxc7 {[%clk 0:02:45.7]} 9. Bf4 {[%clk 0:02:32.9]} 9... Ne6
{[%clk 0:02:43.7]} 10. Bxb8 {[%clk 0:02:29.2]} 10... Rxb8 {[%clk 0:02:45.6]} 11.
Nc3 {[%clk 0:02:27.6]} 11... Nf6 {[%clk 0:02:37.7]} 12. Qd6 {[%clk 0:02:16.3]}
1

[Event "Torneo Nuevo Centro. Jornada 10"]
[Site "Chess.com"]
[Date "2020.08.21"]
[Round "2"]
[White "Garrido Silos, Pablo"]
[Black "Fitzpatrick Dimas, Kevin"]
[Result "1-0"]
[WhiteElo "1456"]
[BlackElo "855"]
[TimeControl "180+2"]
[EndTime "10:43:00 PDT"]
[Termination "Victoria de Picotina por abandono"]

1. e4 {[%clk 0:03:01.9]} 1... e5 {[%clk 0:02:57.7]} 2. Nf3 {[%clk 0:03:03.1]}
2... Nc6 {[%clk 0:02:58.1]} 3. Bb5 {[%clk 0:03:04.4]} 3... Bd6 {[%clk
0:02:54.5]} 4. O-O {[%clk 0:02:56.1]} 4... a6 {[%clk 0:02:55.8]} 5. Bxc6 {[%clk
0:02:56.6]} 5... bxc6 {[%clk 0:02:56.2]} 6. d4 {[%clk 0:02:56.1]} 6... exd4
{[%clk 0:02:56.2]} 7. Qxd4 {[%clk 0:02:57.1]} 7... c5 {[%clk 0:02:56.1]} 8. Qxg7
{[%clk 0:02:55.4]} 8... Be7 {[%clk 0:02:39.2]} 9. Qxh8 {[%clk 0:02:54]} 9... Kf8
{[%clk 0:02:41.1]} 10. Qxh7 {[%clk 0:02:37.4]} 10... d6 {[%clk 0:02:43]} 11.
Bh6+ {[%clk 0:02:34.2]} 11... Nxh6 {[%clk 0:02:41.9]} 12. Qxh6+ {[%clk 0:02:36]}
12... Ke8 {[%clk 0:02:42.6]} 13. Nc3 {[%clk 0:02:22.6]} 13... Bg5 {[%clk
0:02:38.7]} 14. Nxg5 {[%clk 0:02:20.6]} 14... Be6 {[%clk 0:02:35.9]} 15. Nxe6
{[%clk 0:02:18]} 15... fxe6 {[%clk 0:02:35.1]} 16. Qxe6+ {[%clk 0:02:10.7]}
16... Kf8 {[%clk 0:02:35.3]} 17. Qh6+ {[%clk 0:02:09.1]} 17... Ke8 {[%clk
0:02:35.6]} 18. Qh8+ {[%clk 0:02:09.4]} 18... Kd7 {[%clk 0:02:34.7]} 19. Qxd8+
{[%clk 0:02:10.4]} 1

[Event "Torneo Nuevo Centro. Jornada 10"]
[Site "Chess.com"]
[Date "2020.08.21"]
[Round "2"]
[White "Aguado, Pablo Luis"]
[Black "Granero Roca, Antonio"]
[Result "1-0"]
[WhiteElo "1943"]
[BlackElo "2504"]
[TimeControl "180+2"]
[EndTime "10:43:24 PDT"]
[Termination "Victoria de PLAD_2006 por jaque mate"]

1. d4 {[%clk 0:03:01.9]} 1... Nf6 {[%clk 0:03:00]} 2. c4 {[%clk 0:03:02.1]} 2...
g6 {[%clk 0:03:00.7]} 3. Nc3 {[%clk 0:03:02]} 3... Bg7 {[%clk 0:03:01.5]} 4. e4
{[%clk 0:03:03]} 4... d6 {[%clk 0:03:02.4]} 5. Nf3 {[%clk 0:03:02.8]} 5... O-O
{[%clk 0:03:03]} 6. Be2 {[%clk 0:03:03.9]} 6... Bg4 {[%clk 0:03:03.8]} 7. Nd2
{[%clk 0:03:03.3]} 7... Bxe2 {[%clk 0:03:03]} 8. Qxe2 {[%clk 0:03:05.2]} 8...
Nfd7 {[%clk 0:03:03.9]} 9. Nf3 {[%clk 0:03:04.1]} 9... c5 {[%clk 0:03:04.6]} 10.
d5 {[%clk 0:03:04.6]} 10... Na6 {[%clk 0:03:05.6]} 11. a3 {[%clk 0:03:03.7]}
11... Nc7 {[%clk 0:03:05.9]} 12. O-O {[%clk 0:03:04]} 12... a6 {[%clk
0:03:06.9]} 13. a4 {[%clk 0:03:02]} 13... Rb8 {[%clk 0:03:07.2]} 14. a5 {[%clk
0:02:55.8]} 14... e6 {[%clk 0:03:07.4]} 15. Bf4 {[%clk 0:02:54.6]} 15... e5
{[%clk 0:02:59.1]} 16. Bd2 {[%clk 0:02:49.8]} 16... b5 {[%clk 0:02:59]} 17. axb6
{[%clk 0:02:49.3]} 17... Rxb6 {[%clk 0:02:59.9]} 18. Be3 {[%clk 0:02:48.6]}
18... Qb8 {[%clk 0:02:57.6]} 19. Rab1 {[%clk 0:02:42.5]} 19... Rb4 {[%clk
0:02:54.9]} 20. Qd3 {[%clk 0:02:28.9]} 20... f5 {[%clk 0:02:49]} 21. exf5 {[%clk
0:02:29.3]} 21... gxf5 {[%clk 0:02:49.6]} 22. Ng5 {[%clk 0:02:26.1]} 22... e4
{[%clk 0:02:50.3]} 23. Ncxe4 {[%clk 0:02:14.6]} 23... Ne5 {[%clk 0:02:43.1]} 24.
Qc2 {[%clk 0:02:07.6]} 24... fxe4 {[%clk 0:02:43.6]} 25. Qxe4 {[%clk 0:02:08.6]}
25... Rxc4 {[%clk 0:02:41]} 26. Qxh7# {[%clk 0:02:09.2]} 1

[Event "Torneo Nuevo Centro. Jornada 10"]
[Site "Chess.com"]
[Date "2020.08.21"]
[Round "2"]
[White "Chernikov, Vladimir"]
[Black "Zamora Soler, Raul"]
[Result "1-0"]
[WhiteElo "2213"]
[BlackElo "1847"]
[TimeControl "180+2"]
[EndTime "10:44:07 PDT"]
[Termination "Victoria de isla88 por jaque mate"]

1. c4 {[%clk 0:03:01.9]} 1... Nf6 {[%clk 0:03:00.2]} 2. Nc3 {[%clk 0:03:01.2]}
2... e6 {[%clk 0:03:01.3]} 3. e4 {[%clk 0:03:02.2]} 3... c5 {[%clk 0:03:01.9]}
4. Nf3 {[%clk 0:03:01.1]} 4... Nc6 {[%clk 0:03:02.3]} 5. d4 {[%clk 0:03:01.5]}
5... cxd4 {[%clk 0:03:03.3]} 6. Nxd4 {[%clk 0:03:02.4]} 6... Bb4 {[%clk
0:03:02.2]} 7. Nxc6 {[%clk 0:02:58.4]} 7... Bxc3+ {[%clk 0:03:01.6]} 8. bxc3
{[%clk 0:02:57.2]} 8... dxc6 {[%clk 0:03:02.6]} 9. Qxd8+ {[%clk 0:02:55.4]} 9...
Kxd8 {[%clk 0:03:03.4]} 10. f3 {[%clk 0:02:48.7]} 10... h6 {[%clk 0:03:02]} 11.
Bf4 {[%clk 0:02:49.5]} 11... Ke7 {[%clk 0:02:59.4]} 12. c5 {[%clk 0:02:48.3]}
12... Rd8 {[%clk 0:02:59]} 13. Bd6+ {[%clk 0:02:49.1]} 13... Ke8 {[%clk
0:02:59.9]} 14. Bc4 {[%clk 0:02:43.2]} 14... b5 {[%clk 0:02:52.9]} 15. Bb3
{[%clk 0:02:44]} 15... Nd7 {[%clk 0:02:49.5]} 16. Kf2 {[%clk 0:02:41.7]} 16...
Bb7 {[%clk 0:02:41.8]} 17. Rhd1 {[%clk 0:02:38]} 17... a6 {[%clk 0:02:31.8]} 18.
f4 {[%clk 0:02:37.5]} 18... Nf6 {[%clk 0:02:31.5]} 19. Kf3 {[%clk 0:02:31.7]}
19... Nh7 {[%clk 0:02:27.4]} 20. f5 {[%clk 0:02:25.1]} 20... Bc8 {[%clk
0:02:14.2]} 21. a4 {[%clk 0:01:50.2]} 21... exf5 {[%clk 0:02:11.8]} 22. exf5
{[%clk 0:01:49.4]} 22... f6 {[%clk 0:02:12.4]} 23. Re1+ {[%clk 0:01:49]} 23...
Kd7 {[%clk 0:02:08.7]} 24. Re7# {[%clk 0:01:49.4]} 1

[Event "Torneo Nuevo Centro. Jornada 10"]
[Site "Chess.com"]
[Date "2020.08.21"]
[Round "2"]
[White "Donate Moreno, Silvia"]
[Black "Polikarpov, Anton"]
[Result "1-0"]
[WhiteElo "1772"]
[BlackElo "1207"]
[TimeControl "180+2"]
[EndTime "10:44:18 PDT"]
[Termination "Victoria de monetesSAL por abandono"]

1. e4 {[%clk 0:03:01.9]} 1... e5 {[%clk 0:03:00.4]} 2. Nf3 {[%clk 0:03:02.9]}
2... Nc6 {[%clk 0:02:59.9]} 3. Bb5 {[%clk 0:03:03.7]} 3... d6 {[%clk 0:02:52.8]}
4. d4 {[%clk 0:03:02.4]} 4... Bg4 {[%clk 0:02:51.2]} 5. d5 {[%clk 0:02:56.2]}
5... a6 {[%clk 0:02:50]} 6. dxc6 {[%clk 0:02:57.1]} 6... axb5 {[%clk 0:02:49]}
7. cxb7 {[%clk 0:02:57.8]} 7... Rb8 {[%clk 0:02:45.7]} 8. h3 {[%clk 0:02:57.8]}
8... Bh5 {[%clk 0:02:45.7]} 9. Nc3 {[%clk 0:02:56.6]} 9... Rxb7 {[%clk
0:02:43.9]} 10. g4 {[%clk 0:02:54.6]} 10... Bg6 {[%clk 0:02:42.4]} 11. Ng5
{[%clk 0:02:54.9]} 11... h6 {[%clk 0:02:37.8]} 12. Qd5 {[%clk 0:02:54.7]} 12...
Rb8 {[%clk 0:02:19.5]} 13. Nf3 {[%clk 0:02:52.2]} 13... Qf6 {[%clk 0:02:16.2]}
14. Qc6+ {[%clk 0:02:43.8]} 14... Kd8 {[%clk 0:02:08.2]} 15. Nd5 {[%clk
0:02:38.2]} 15... Qe6 {[%clk 0:01:50.9]} 16. Qxc7+ {[%clk 0:02:36.3]} 16... Ke8
{[%clk 0:01:43]} 17. Qxb8+ {[%clk 0:02:36.9]} 17... Kd7 {[%clk 0:01:41]} 18.
Qb7+ {[%clk 0:02:34.1]} 18... Kd8 {[%clk 0:01:40.5]} 19. Qc7+ {[%clk 0:02:26.7]}
19... Ke8 {[%clk 0:01:35.7]} 20. Qa5 {[%clk 0:02:14.6]} 20... Bxe4 {[%clk
0:01:35.2]} 21. Nc7+ {[%clk 0:02:15.1]} 21... Kd7 {[%clk 0:01:31.8]} 22. Nxe6
{[%clk 0:02:16]} 22... Kxe6 {[%clk 0:01:32.5]} 23. Ke2 {[%clk 0:02:15.4]} 1

[Event "Torneo Nuevo Centro. Jornada 10"]
[Site "Chess.com"]
[Date "2020.08.21"]
[Round "2"]
[White "Miranda Calvo, Max Rodrigo"]
[Black "Lloret Ramis, Juan José"]
[Result "1-0"]
[WhiteElo "1376"]
[BlackElo "1962"]
[TimeControl "180+2"]
[EndTime "10:44:27 PDT"]
[Termination "Victoria de bas-max-miranda por tiempo"]

1. e4 {[%clk 0:03:01.9]} 1... e6 {[%clk 0:02:52.7]} 2. d4 {[%clk 0:03:00.4]}
2... d5 {[%clk 0:02:52.3]} 3. exd5 {[%clk 0:03:01.2]} 3... exd5 {[%clk
0:02:52.3]} 4. Nc3 {[%clk 0:03:01]} 4... Nc6 {[%clk 0:02:51.2]} 5. Bb5 {[%clk
0:02:59.9]} 5... Bb4 {[%clk 0:02:48.8]} 6. Bxc6+ {[%clk 0:03:00.8]} 6... bxc6
{[%clk 0:02:49.1]} 7. Qe2+ {[%clk 0:03:01.9]} 7... Ne7 {[%clk 0:02:48.5]} 8. Bd2
{[%clk 0:03:01.7]} 8... O-O {[%clk 0:02:48.5]} 9. Nf3 {[%clk 0:03:01.6]} 9...
Bg4 {[%clk 0:02:48.2]} 10. O-O {[%clk 0:03:02]} 10... Nf5 {[%clk 0:02:46]} 11.
h3 {[%clk 0:03:02.6]} 11... Nxd4 {[%clk 0:02:40.6]} 12. Qd3 {[%clk 0:02:55.2]}
12... Nxf3+ {[%clk 0:02:39.9]} 13. gxf3 {[%clk 0:02:56.8]} 13... Bxh3 {[%clk
0:02:38.4]} 14. Qd4 {[%clk 0:02:55.9]} 1

[Event "Torneo Nuevo Centro. Jornada 10"]
[Site "Chess.com"]
[Date "2020.08.21"]
[Round "2"]
[White "Ursariu, Nikolas Victor"]
[Black "Chofre Murcia, Adrián"]
[Result "0-1"]
[WhiteElo "1091"]
[BlackElo "1675"]
[TimeControl "180+2"]
[EndTime "10:45:00 PDT"]
[Termination "Victoria de Kelorian por jaque mate"]

1. e4 {[%clk 0:03:01.9]} 1... e5 {[%clk 0:03:01]} 2. Nf3 {[%clk 0:03:02.6]} 2...
Nc6 {[%clk 0:03:02.1]} 3. Nc3 {[%clk 0:03:01.3]} 3... f5 {[%clk 0:02:59.7]} 4.
exf5 {[%clk 0:02:57.1]} 4... Nf6 {[%clk 0:03:00.8]} 5. Bc4 {[%clk 0:02:54.1]}
5... d5 {[%clk 0:02:59.4]} 6. Bb3 {[%clk 0:02:49.1]} 6... Bxf5 {[%clk 0:02:56]}
7. d4 {[%clk 0:02:43]} 7... exd4 {[%clk 0:02:50.4]} 8. Nxd4 {[%clk 0:02:44.9]}
8... Nxd4 {[%clk 0:02:50.5]} 9. Qxd4 {[%clk 0:02:43.9]} 9... Qe7+ {[%clk
0:02:51.4]} 10. Be3 {[%clk 0:02:42.6]} 10... c6 {[%clk 0:02:49.1]} 11. O-O
{[%clk 0:02:39.6]} 11... g6 {[%clk 0:02:47.5]} 12. Rfe1 {[%clk 0:02:36]} 12...
Bg7 {[%clk 0:02:46.9]} 13. Qa4 {[%clk 0:02:31.1]} 13... O-O {[%clk 0:02:46.2]}
14. Bg5 {[%clk 0:02:24.4]} 14... Qd6 {[%clk 0:02:46.3]} 15. Re2 {[%clk
0:02:10.5]} 15... Ne4 {[%clk 0:02:46.6]} 16. Nxe4 {[%clk 0:02:06.1]} 16... Bxe4
{[%clk 0:02:46.3]} 17. c3 {[%clk 0:02:01.2]} 17... Bf5 {[%clk 0:02:45.4]} 18.
Rae1 {[%clk 0:01:57.8]} 18... Kh8 {[%clk 0:02:40.4]} 19. Be7 {[%clk 0:01:46.5]}
19... Qc7 {[%clk 0:02:16.9]} 20. Bxf8 {[%clk 0:01:42.8]} 20... Rxf8 {[%clk
0:02:17.1]} 21. Re8 {[%clk 0:01:42.4]} 21... Qd6 {[%clk 0:02:07.4]} 22. Qxa7
{[%clk 0:01:37.1]} 22... h5 {[%clk 0:02:06]} 23. Qxb7 {[%clk 0:01:30.1]} 23...
Rxe8 {[%clk 0:02:04.1]} 24. Rxe8+ {[%clk 0:01:29.4]} 24... Kh7 {[%clk
0:02:05.3]} 25. Re7 {[%clk 0:01:24.4]} 25... Qf6 {[%clk 0:02:04.5]} 26. Rf7
{[%clk 0:01:23.6]} 26... Qe5 {[%clk 0:02:02.5]} 27. a4 {[%clk 0:01:19.3]} 27...
Qe1# {[%clk 0:02:00.8]} 0

[Event "Torneo Nuevo Centro. Jornada 10"]
[Site "Chess.com"]
[Date "2020.08.21"]
[Round "2"]
[White "Hassomal Daswani, Birjkumar"]
[Black "Escalona Moncholi, Felix"]
[Result "0-1"]
[WhiteElo "1835"]
[BlackElo "2076"]
[TimeControl "180+2"]
[EndTime "10:45:23 PDT"]
[Termination "Victoria de SchachSpielerESP por abandono"]

1. e4 {[%clk 0:03:01.9]} 1... e6 {[%clk 0:03:01.2]} 2. d4 {[%clk 0:03:02.2]}
2... d5 {[%clk 0:03:02.8]} 3. e5 {[%clk 0:03:03.2]} 3... c5 {[%clk 0:03:03.7]}
4. c3 {[%clk 0:03:04.1]} 4... Nc6 {[%clk 0:03:05.2]} 5. Nf3 {[%clk 0:03:05]}
5... Bd7 {[%clk 0:03:06.4]} 6. Be2 {[%clk 0:03:04.9]} 6... f6 {[%clk 0:03:07.1]}
7. exf6 {[%clk 0:03:03.4]} 7... Nxf6 {[%clk 0:03:07.4]} 8. O-O {[%clk
0:03:04.1]} 8... Bd6 {[%clk 0:03:08.4]} 9. dxc5 {[%clk 0:03:04.4]} 9... Bxc5
{[%clk 0:03:09.1]} 10. Bg5 {[%clk 0:03:05]} 10... O-O {[%clk 0:03:09.9]} 11. Bh4
{[%clk 0:03:05.8]} 11... Bd6 {[%clk 0:02:57.8]} 12. Nbd2 {[%clk 0:03:03.3]}
12... Qc7 {[%clk 0:02:58.6]} 13. Re1 {[%clk 0:03:03.9]} 13... Rae8 {[%clk
0:02:50.6]} 14. Nf1 {[%clk 0:03:04]} 14... Ne4 {[%clk 0:02:49]} 15. Bg3 {[%clk
0:03:02.4]} 15... Nxg3 {[%clk 0:02:49.2]} 16. Nxg3 {[%clk 0:03:03.2]} 16... Bc5
{[%clk 0:02:44.1]} 17. Qc2 {[%clk 0:02:59.5]} 17... e5 {[%clk 0:02:32.7]} 18.
Rf1 {[%clk 0:02:59.7]} 18... e4 {[%clk 0:02:29.3]} 19. Nd4 {[%clk 0:02:49.3]}
19... Qb6 {[%clk 0:02:09]} 20. Rad1 {[%clk 0:02:47.9]} 20... Nxd4 {[%clk
0:01:54.1]} 21. cxd4 {[%clk 0:02:47.3]} 21... Bxd4 {[%clk 0:01:56]} 22. Qd2
{[%clk 0:02:37.9]} 22... Bxf2+ {[%clk 0:01:47.9]} 23. Kh1 {[%clk 0:02:38.6]}
23... Be6 {[%clk 0:01:25.8]} 24. Bh5 {[%clk 0:02:33]} 24... e3 {[%clk
0:01:21.2]} 25. Qd3 {[%clk 0:02:25.9]} 25... Rd8 {[%clk 0:01:16.2]} 26. Ne2
{[%clk 0:02:21.1]} 26... Bf5 {[%clk 0:01:10.8]} 27. Qd4 {[%clk 0:02:21.7]} 27...
Qxd4 {[%clk 0:01:06.8]} 28. Rxd4 {[%clk 0:02:22.3]} 28... Be4 {[%clk 0:01:06.8]}
29. Nc3 {[%clk 0:02:22]} 29... e2 {[%clk 0:01:00.7]} 30. Nxe2 {[%clk 0:02:21.1]}
30... Bxd4 {[%clk 0:01:00.5]} 31. Rxf8+ {[%clk 0:02:18.7]} 31... Rxf8 {[%clk
0:01:02.4]} 0